fUSD/lending_fUSD_20250708
["ID","MTS","AMOUNT","RATE_DAILY","PERIOD"]
[370416883,1752010247359,-460.0,0.00024657,2]
[370416884,1752010247368,-460.0,0.00024657,2]
[370416885,1752010247378,-198.984039,0.00024657,7]
[370416886,1752010247388,-899.78,0.00024657,2]
[370416887,1752010247398,-460.0,0.00024657,2]
[370416888,1752010247408,-460.0,0.00024657,2]
[370416889,1752010247417,-460.0,0.00024657,2]
[370416890,1752010247427,-1838.44,0.00024657,2]
[370416891,1752010247437,-462.47,0.00024657,2]
[370416892,1752010247447,-460.0,0.00024657,2]
[370416893,1752010247458,-460.0,0.00024657,2]
[370416894,1752010247467,-2542.54,0.00024657,2]
[370416895,1752010247477,-460.0,0.00024657,2]
[370416896,1752010247487,-460.0,0.00024657,2]
[370416897,1752010247496,-460.0,0.00024657,2]
[370416898,1752010247507,-1394.34,0.00024657,2]
[370416899,1752010247517,-545.71806494,0.00024657,2]
[370416900,1752010247527,-1058.02,0.00024657,2]
[370416901,1752010247537,-2079.45,0.00024657,2]
[370416902,1752010247546,-731.57,0.00024657,2]
[370416903,1752010247556,-1759.53,0.00024657,2]
[370416904,1752010247566,-568.47,0.00024657,2]
[370416905,1752010247575,-460.0,0.00024657,2]
[370416906,1752010247585,-460.0,0.00024657,2]
[370416907,1752010247594,-2088.0,0.00024657,2]
[370416908,1752010247604,-460.0,0.00024657,2]
[370416909,1752010247614,-460.0,0.00024657,2]
[370416910,1752010247623,-608.77,0.00024657,2]
[370416911,1752010247633,-1188.65,0.00024657,2]
[370416912,1752010247643,-1018.64,0.00024657,2]
[370416913,1752010247654,-1100.59,0.00024657,2]
[370416914,1752010247665,-460.0,0.00024657,2]
[370416915,1752010247674,-1913.4,0.00024657,2]
[370416916,1752010247684,-588.88,0.00024657,2]
[370416917,1752010247694,-460.0,0.00024657,2]
[370416918,1752010247704,-460.0,0.00024657,2]
[370416919,1752010247714,-1149.96,0.00024657,2]
[370416920,1752010247723,-460.0,0.00024657,2]
[370416921,1752010247736,-460.0,0.00024657,2]
[370416922,1752010247746,-460.0,0.00024657,2]
[370416923,1752010247756,-3195.85,0.00024657,2]
[370416924,1752010247765,-741.79,0.00024657,2]
[370416925,1752010247775,-1057.01,0.00024657,2]
[370416926,1752010247785,-483.62,0.00024657,2]
[370416927,1752010247794,-498.95,0.00024657,2]
[370416928,1752010247804,-904.17,0.00024657,2]
[370416929,1752010247815,-587.72669219,0.00024657,2]
[370416930,1752010247825,-1601.26,0.00024657,2]
[370416931,1752010247835,-500.0,0.00024657,2]
[370416932,1752010247844,-460.0,0.00024657,2]
[370416933,1752010247854,-925.39,0.00024657,2]
[370416934,1752010247863,-460.0,0.00024657,2]
[370416935,1752010247873,-486.73,0.00024657,2]
[370416936,1752010248236,-460.0,0.00024657,2]
[370416937,1752010248247,-460.0,0.00024657,2]
[370416938,1752010248257,-460.0,0.00024657,2]
[370416939,1752010248267,-460.0,0.00024657,2]
[370416940,1752010248276,-460.0,0.00024657,2]
[370416941,1752010248286,-460.0,0.00024657,2]
[370416942,1752010248296,-869.84,0.00024657,2]
[370416943,1752010248306,-460.0,0.00024657,2]
[370416944,1752010248316,-529.3,0.00024657,2]
[370416945,1752010248325,-460.0,0.00024657,2]
[370416946,1752010248335,-460.0,0.00024657,2]
[370416947,1752010248344,-460.0,0.00024657,2]
[370416948,1752010248354,-1897.62,0.00024657,2]
[370416949,1752010248364,-3135.93,0.00024657,2]
[370416950,1752010248373,-460.0,0.00024657,2]
[370416951,1752010248383,-460.0,0.00024657,2]
[370416952,1752010248393,-460.16,0.00024657,2]
[370416953,1752010248403,-460.0,0.00024657,2]
[370416954,1752010248412,-2891.35,0.00024657,2]
[370416955,1752010248422,-460.0,0.00024657,2]
[370416956,1752010248432,-1153.22,0.00024657,2]
[370416957,1752010248441,-2603.08,0.00024657,2]
[370416958,1752010248452,-551.67525944,0.00024657,2]
[370416959,1752010248461,-908.73,0.00024657,2]
[370416960,1752010248471,-460.0,0.00024657,2]
[370416961,1752010248480,-460.0,0.00024657,2]
[370416962,1752010248490,-674.03,0.00024657,2]
[370416963,1752010248499,-635.41,0.00024657,2]
[370416964,1752010248508,-460.0,0.00024657,2]
[370416965,1752010248518,-460.0,0.00024657,2]
[370416966,1752010248527,-1598.91,0.00024657,2]
[370416967,1752010248537,-460.0,0.00024657,2]
[370416968,1752010248546,-3046.39,0.00024657,2]
[370416969,1752010248556,-1087.61,0.00024657,2]
[370416970,1752010248566,-460.0,0.00024657,2]
[370416971,1752010248575,-460.0,0.00024657,2]
[370416972,1752010248585,-1370.82,0.00024657,2]
[370416973,1752010248594,-460.0,0.00024657,2]
[370416974,1752010248604,-940.19,0.00024657,2]
[370416975,1752010248614,-460.0,0.00024657,2]
[370416976,1752010248623,-492.77,0.00024657,2]
[370416977,1752010248633,-612.91,0.00024657,2]
[370416978,1752010248643,-753.12,0.00024657,2]
[370416979,1752010248655,-460.0,0.00024657,2]
[370416980,1752010248666,-762.76,0.00024657,2]
[370416981,1752010248675,-825.3,0.00024657,2]
[370416982,1752010248685,-460.0,0.00024657,2]
[370416983,1752010248695,-463.25,0.00024657,2]
[370416984,1752010248706,-650.59,0.00024657,2]
[370416985,1752010248716,-460.0,0.00024657,2]
[370416986,1752010248726,-228.60287275,0.00024657,2]
[370416987,1752010248737,-914.07,0.00024657,2]
[370416988,1752010248747,-2904.39,0.00024657,2]
[370416989,1752010248756,-720.65,0.00024657,2]
[370416990,1752010248766,-460.0,0.00024657,2]
[370416991,1752010248775,-490.52,0.00024657,2]
[370416992,1752010248785,-460.0,0.00024657,2]
[370416993,1752010248795,-460.0,0.00024657,2]
[370416994,1752010248804,-572.36,0.00024657,2]
[370416995,1752010248815,-460.0,0.00024657,2]
[370416996,1752010248824,-460.0,0.00024657,2]
[370416997,1752010248833,-550.78,0.00024657,2]
[370416998,1752010248843,-602.49,0.00024657,2]
[370416999,1752010248852,-1227.99,0.00024657,2]
[370417000,1752010248862,-1246.46,0.00024657,2]
[370417001,1752010248872,-460.0,0.00024657,2]
[370417002,1752010248882,-1560.26,0.00024657,2]
[370417003,1752010248892,-1604.48,0.00024657,2]
[370417004,1752010248903,-778.43,0.00024657,2]
[370417005,1752010248913,-602.4,0.00024657,2]
[370417006,1752010248924,-460.0,0.00024657,2]
[370417007,1752010248933,-510.22,0.00024657,2]
[370417008,1752010248943,-460.0,0.00024657,2]
[370417009,1752010248953,-460.0,0.00024657,2]
[370417010,1752010248962,-460.0,0.00024657,2]
[370417011,1752010248972,-460.0,0.00024657,2]
[370417012,1752010248981,-460.0,0.00024657,2]
[370417013,1752010248991,-460.0,0.00024657,2]
[370417014,1752010249001,-460.0,0.00024657,2]
[370417015,1752010249010,-925.04,0.00024657,2]
[370417016,1752010249020,-460.0,0.00024657,2]
[370417017,1752010249029,-489.74,0.00024657,2]
[370417018,1752010249039,-460.0,0.00024657,2]
[370417019,1752010249048,-810.26,0.00024657,2]
[370417020,1752010249057,-460.0,0.00024657,2]
[370417021,1752010249067,-151.0,0.00024657,7]
[370417022,1752010249076,-151.0,0.00024657,7]
[370417023,1752010249086,-460.0,0.00024657,2]
[370417024,1752010249095,-569.95,0.00024657,2]
[370417025,1752010249105,-460.0,0.00024657,2]
[370417026,1752010249115,-151.0,0.00024657,7]
[370417027,1752010249125,-151.0,0.00024657,7]
[370417028,1752010249134,-460.0,0.00024657,2]
[370417029,1752010249144,-246.007537,0.00024657,7]
[370417030,1752010249153,-1054.74,0.00024657,2]
[370417031,1752010249163,-460.0,0.00024657,2]
[370417032,1752010249172,-1044.22,0.00024657,2]
[370417033,1752010249182,-460.0,0.00024657,2]
[370417034,1752010249192,-1292.98,0.00024657,2]
[370417035,1752010249203,-460.0,0.00024657,2]
[370417036,1752010249212,-460.0,0.00024657,2]
[370417037,1752010249222,-460.0,0.00024657,2]
[370417038,1752010249232,-686.07,0.00024657,2]
[370417039,1752010249241,-1782.41,0.00024657,2]
[370417040,1752010249251,-517.31,0.00024657,2]
[370417041,1752010249261,-595.53,0.00024657,2]
[370417042,1752010249270,-578.9,0.00024657,2]
[370417043,1752010249281,-460.0,0.00024657,2]
[370417044,1752010249291,-460.0,0.00024657,2]
[370417045,1752010249300,-493.05,0.00024657,2]
[370417046,1752010249310,-460.0,0.00024657,2]
[370417047,1752010249320,-941.28,0.00024657,2]
[370417048,1752010249329,-2425.89,0.00024657,2]
[370417049,1752010249339,-654.55,0.00024657,2]
[370417050,1752010249349,-460.0,0.00024657,2]
[370417051,1752010249358,-2222.67,0.00024657,2]
[370417052,1752010249367,-460.0,0.00024657,2]
[370417053,1752010249376,-551.560692,0.00024657,2]
[370417054,1752010249386,-1165.94,0.00024657,2]
[370417055,1752010249396,-500.0,0.00024657,2]
[370417056,1752010249406,-500.0,0.00024657,2]
[370417057,1752010249415,-575.4,0.00024657,2]
[370417058,1752010249426,-500.0,0.00024657,2]
[370417059,1752010249435,-460.0,0.00024657,2]
[370417060,1752010249445,-543.5,0.00024657,2]
[370417061,1752010249456,-614.95,0.00024657,2]
[370417062,1752010249465,-500.0,0.00024657,2]
[370417063,1752010249474,-500.0,0.00024657,2]
[370417064,1752010249484,-460.0,0.00024657,2]
[370417065,1752010249493,-500.0,0.00024657,2]
[370417066,1752010249503,-500.0,0.00024657,2]
[370417067,1752010249513,-481.74,0.00024657,2]
[370417068,1752010249523,-629.27,0.00024657,2]
[370417069,1752010249532,-1463.4,0.00024657,2]
[370417070,1752010249542,-497.7,0.00024657,2]
[370417071,1752010249551,-1791.7,0.00024657,2]
[370417072,1752010249561,-460.0,0.00024657,2]
[370417073,1752010249570,-460.0,0.00024657,2]
[370417074,1752010249580,-2220.81,0.00024657,2]
[370417075,1752010249590,-541.34,0.00024657,2]
[370417076,1752010249600,-2064.02,0.00024657,2]
[370417077,1752010249610,-190.24900507,0.00024657,2]
[370417078,1752010249620,-460.0,0.00024657,2]
[370417079,1752010249629,-460.0,0.00024657,2]
[370417080,1752010249639,-460.0,0.00024657,2]
[370417081,1752010249649,-460.0,0.00024657,2]
[370417082,1752010249663,-460.0,0.00024657,2]
[370417083,1752010249673,-460.0,0.00024657,2]
[370417084,1752010249682,-460.0,0.00024657,2]
[370417085,1752010249691,-1588.49,0.00024657,2]
[370417086,1752010249707,-649.66,0.00024657,2]
[370417087,1752010249716,-460.0,0.00024657,2]
[370417088,1752010249725,-460.0,0.00024657,2]
[370417089,1752010249735,-151.0,0.00024657,7]
[370417090,1752010249745,-151.0,0.00024657,7]
[370417091,1752010249755,-648.01,0.00024657,2]
[370417092,1752010249764,-151.0,0.00024657,7]
[370417093,1752010249774,-460.0,0.00024657,2]
[370417094,1752010249783,-151.0,0.00024657,7]
[370417095,1752010249792,-151.0,0.00024657,7]
[370417096,1752010249807,-460.0,0.00024657,2]
[370417097,1752010249817,-499.39,0.00024657,2]
[370417098,1752010249827,-460.0,0.00024657,2]
[370417099,1752010249837,-460.0,0.00024657,2]
[370417100,1752010249847,-523.55,0.00024657,2]
[370417101,1752010249856,-460.0,0.00024657,2]
[370417102,1752010249866,-460.0,0.00024657,2]
[370417103,1752010249876,-500.0,0.00024657,2]
[370417104,1752010249886,-500.0,0.00024657,2]
[370417105,1752010249896,-460.0,0.00024657,2]
[370417106,1752010249906,-500.0,0.00024657,2]
[370417107,1752010249916,-984.38,0.00024657,2]
[370417108,1752010249925,-500.0,0.00024657,2]
[370417109,1752010249935,-1464.84,0.00024657,2]
[370417110,1752010249945,-1352.59,0.00024657,2]
[370417111,1752010249956,-517.5,0.00024657,2]
[370417112,1752010249966,-1337.53,0.00024657,2]
[370417113,1752010249975,-460.0,0.00024657,2]
[370417114,1752010249985,-3102.29,0.00024657,2]
[370417115,1752010249995,-813.39,0.00024657,2]
[370417116,1752010250005,-460.0,0.00024657,2]
[370417117,1752010250015,-602.8,0.00024657,2]
[370417118,1752010250025,-460.0,0.00024657,2]
[370417119,1752010250036,-460.0,0.00024657,2]
[370417120,1752010250045,-460.0,0.00024657,2]
[370417121,1752010250056,-460.0,0.00024657,2]
[370417122,1752010250065,-460.0,0.00024657,2]
[370417123,1752010250075,-460.0,0.00024657,2]
[370417124,1752010250085,-1229.73,0.00024657,2]
[370417125,1752010250094,-460.0,0.00024657,2]
[370417126,1752010250104,-460.0,0.00024657,2]
[370417127,1752010250113,-525.93,0.00024657,2]
[370417128,1752010250124,-1363.12,0.00024657,2]
[370417129,1752010250133,-460.0,0.00024657,2]
[370417130,1752010250143,-460.0,0.00024657,2]
[370417131,1752010250153,-1749.27,0.00024657,2]
[370417132,1752010250164,-460.0,0.00024657,2]
[370417133,1752010250173,-4999.35,0.00024657,2]
[370417134,1752010250184,-726.67,0.00024657,2]
[370417135,1752010250194,-1772.27,0.00024657,2]
[370417136,1752010250205,-600.22,0.00024657,2]
[370417137,1752010250215,-480.25952535,0.00024657,2]
[370417138,1752010250225,-460.0,0.00024657,2]
[370417139,1752010250235,-460.0,0.00024657,2]
[370417140,1752010250245,-1240.91,0.00024657,2]
[370417141,1752010250257,-589.17,0.00024657,2]
[370417142,1752010250267,-1850.49,0.00024657,2]
[370417143,1752010250277,-1903.65,0.00024657,2]
[370417144,1752010250287,-460.0,0.00024657,2]
[370417145,1752010250297,-582.93,0.00024657,2]
[370417146,1752010250307,-582.93,0.00024657,2]
[370417147,1752010250317,-582.93,0.00024657,2]
[370417148,1752010250327,-582.93,0.00024657,2]
[370417149,1752010250336,-611.63,0.00024657,2]
[370417150,1752010250346,-582.93,0.00024657,2]
[370417151,1752010250356,-582.93,0.00024657,2]
[370417152,1752010250366,-582.93,0.00024657,2]
[370417153,1752010250376,-839.79,0.00024657,2]
[370417154,1752010250386,-582.93,0.00024657,2]
[370417155,1752010250395,-460.0,0.00024657,2]
[370417156,1752010250406,-582.93,0.00024657,2]
[370417157,1752010250416,-460.0,0.00024657,2]
[370417158,1752010250426,-460.0,0.00024657,2]
[370417159,1752010250435,-460.0,0.00024657,2]
[370417160,1752010250445,-7068.12,0.00024657,2]
[370417161,1752010250456,-3344.5,0.00024657,2]
[370417162,1752010250466,-460.0,0.00024657,2]
[370417163,1752010250476,-975.57,0.00024657,2]
[370417164,1752010250485,-460.0,0.00024657,2]
[370417165,1752010250495,-460.0,0.00024657,2]
[370417166,1752010250505,-460.0,0.00024657,2]
[370417167,1752010250515,-460.0,0.00024657,2]
[370417168,1752010250525,-3625.36,0.00024657,2]
[370417169,1752010250535,-460.0,0.00024657,2]
[370417170,1752010250544,-2158.24,0.00024657,2]
[370417171,1752010250554,-460.0,0.00024657,2]
[370417172,1752010250564,-708.82,0.00024657,2]
[370417173,1752010250574,-460.0,0.00024657,2]
[370417174,1752010250584,-1237.72,0.00024657,2]
[370417175,1752010250593,-460.0,0.00024657,2]
[370417176,1752010250730,-460.0,0.00024657,2]
[370417177,1752010250740,-1010.66,0.00024657,2]
[370417178,1752010250749,-1763.85,0.00024657,2]
[370417179,1752010250759,-514.67,0.00024657,2]
[370417180,1752010250768,-19241.81,0.00024657,2]
[370417181,1752010250777,-758.04,0.00024657,2]
[370417182,1752010250786,-460.0,0.00024657,2]
[370417183,1752010250796,-151.0,0.00024657,7]
[370417184,1752010250805,-460.0,0.00024657,2]
[370417185,1752010250814,-460.0,0.00024657,2]
[370417186,1752010250824,-460.0,0.00024657,2]
[370417187,1752010250834,-460.0,0.00024657,2]
[370417188,1752010250843,-2133.32,0.00024657,2]
[370417189,1752010250852,-1411.54,0.00024657,2]
[370417190,1752010250861,-825.39,0.00024657,2]
[370417191,1752010250870,-502.21,0.00024657,2]
[370417192,1752010250880,-198.18731291,0.00024657,2]
[370417193,1752010250890,-460.0,0.00024657,2]
[370417194,1752010250899,-5404.92,0.00024657,2]
[370417195,1752010250908,-460.0,0.00024657,2]
[370417196,1752010250918,-460.0,0.00024657,2]
[370417197,1752010250928,-846.58,0.00024657,2]
[370417198,1752010250937,-876.49,0.00024657,2]
[370417199,1752010250947,-460.0,0.00024657,2]
[370417200,1752010250958,-795.24,0.00024657,2]
[370417201,1752010250968,-460.0,0.00024657,2]
[370417202,1752010250977,-4387.07,0.00024657,2]
[370417203,1752010250987,-496.82,0.00024657,2]
[370417204,1752010250997,-634.56,0.00024657,2]
[370417205,1752010251006,-460.0,0.00024657,2]
[370417206,1752010251015,-463.84,0.00024657,2]
[370417207,1752010251025,-460.0,0.00024657,2]
[370417208,1752010251034,-6274.24,0.00024657,2]
[370417209,1752010251045,-1483.02,0.00024657,2]
[370417210,1752010251056,-5407.44,0.00024657,2]
[370417211,1752010251066,-5407.44,0.00024657,2]
[370417212,1752010251076,-5407.44,0.00024657,2]
[370417213,1752010251086,-563.68,0.00024657,2]
[370417214,1752010251095,-5407.44,0.00024657,2]
[370417215,1752010251106,-460.0,0.00024657,2]
[370417216,1752010251116,-5407.44,0.00024657,2]
[370417217,1752010251126,-5407.44,0.00024657,2]
[370417218,1752010251136,-460.0,0.00024657,2]
[370417219,1752010251145,-1021.16,0.00024657,2]
[370417220,1752010251155,-5407.44,0.00024657,2]
[370417221,1752010251164,-5407.44,0.00024657,2]
[370417222,1752010251173,-5407.44,0.00024657,2]
[370417223,1752010251182,-460.0,0.00024657,2]
[370417224,1752010251191,-460.0,0.00024657,2]
[370417225,1752010251202,-1865.69,0.00024657,2]
[370417226,1752010251211,-3052.64,0.00024657,2]
[370417227,1752010251221,-522.2,0.00024657,2]
[370417228,1752010251231,-460.0,0.00024657,2]
[370417229,1752010251240,-460.0,0.00024657,2]
[370417230,1752010251250,-460.0,0.00024657,2]
[370417231,1752010251260,-460.0,0.00024657,2]
[370417232,1752010251271,-2364.98,0.00024657,2]
[370417233,1752010251281,-1923.08,0.00024657,2]
[370417234,1752010251291,-460.0,0.00024657,2]
[370417235,1752010251301,-460.0,0.00024657,2]
[370417236,1752010251311,-902.31,0.00024657,2]
[370417237,1752010251322,-2105.65,0.00024657,2]
[370417238,1752010251331,-1137.01,0.00024657,2]
[370417239,1752010251340,-460.0,0.00024657,2]
[370417240,1752010251349,-1539.15,0.00024657,2]
[370417241,1752010251359,-3075.02,0.00024657,2]
[370417242,1752010251368,-460.0,0.00024657,2]
[370417243,1752010251378,-151.0,0.00024657,7]
[370417244,1752010251387,-151.0,0.00024657,7]
[370417245,1752010251396,-460.0,0.00024657,2]
[370417246,1752010251406,-151.0,0.00024657,7]
[370417247,1752010251415,-556.92,0.00024657,2]
[370417248,1752010251425,-151.0,0.00024657,7]
[370417249,1752010251434,-1933.28,0.00024657,2]
[370417250,1752010251444,-2532.89,0.00024657,2]
[370417251,1752010251454,-151.0,0.00024657,7]
[370417252,1752010251463,-151.0,0.00024657,7]
[370417253,1752010251472,-490.0,0.00024657,2]
[370417254,1752010251481,-700.93,0.00024657,2]
[370417255,1752010251490,-1207.48,0.00024657,2]
[370417256,1752010251500,-460.0,0.00024657,2]
[370417257,1752010251509,-151.0,0.00024657,7]
[370417258,1752010251518,-151.0,0.00024657,7]
[370417259,1752010251527,-33692.26,0.00024657,2]
[370417260,1752010251536,-151.0,0.00024657,7]
[370417261,1752010251545,-460.0,0.00024657,2]
[370417262,1752010251554,-151.0,0.00024657,7]
[370417263,1752010251564,-151.0,0.00024657,7]
[370417264,1752010251573,-151.0,0.00024657,7]
[370417265,1752010251583,-1716.92,0.00024657,2]
[370417266,1752010251592,-591.62,0.00024657,2]
[370417267,1752010251602,-1766.12,0.00024657,2]
[370417268,1752010251611,-993.0,0.00024657,2]
[370417269,1752010251620,-460.0,0.00024657,2]
[370417270,1752010251630,-460.0,0.00024657,2]
[370417271,1752010251639,-1329.71,0.00024657,2]
[370417272,1752010251652,-1696.49,0.00024657,2]
[370417273,1752010251661,-20114.6,0.00024657,2]
[370417274,1752010251670,-500.0,0.00024657,2]
[370417275,1752010251680,-460.0,0.00024657,2]
[370417276,1752010251689,-460.0,0.00024657,2]
[370417277,1752010251699,-804.66,0.00024657,2]
[370417278,1752010251709,-460.0,0.00024657,2]
[370417279,1752010251718,-460.0,0.00024657,2]
[370417280,1752010251727,-3150.98,0.00024657,2]
[370417281,1752010251738,-500.0,0.00024657,2]
[370417282,1752010251747,-460.0,0.00024657,2]
[370417283,1752010251757,-500.0,0.00024657,2]
[370417284,1752010251767,-500.0,0.00024657,2]
[370417285,1752010251776,-500.0,0.00024657,2]
[370417286,1752010251785,-500.0,0.00024657,2]
[370417287,1752010251796,-460.0,0.00024657,2]
[370417288,1752010251805,-500.0,0.00024657,2]
[370417289,1752010251814,-500.0,0.00024657,2]
[370417290,1752010251824,-500.0,0.00024657,2]
[370417291,1752010251834,-500.0,0.00024657,2]
[370417292,1752010251843,-1080.93,0.00024657,2]
[370417293,1752010251853,-509.74,0.00024657,2]
[370417294,1752010251862,-1803.42,0.00024657,2]
[370417295,1752010251871,-3711.52,0.00024657,2]
[370417296,1752010251881,-2299.3,0.00024657,2]
[370417297,1752010251891,-1534.2,0.00024657,2]
[370417298,1752010251901,-460.0,0.00024657,2]
[370417299,1752010251911,-150.0,0.00024657,2]
[370417300,1752010251920,-1008.31,0.00024657,2]
[370417301,1752010251929,-9527.8,0.00024657,2]
[370417302,1752010251938,-500.0,0.00024657,2]
[370417303,1752010251947,-460.0,0.00024657,2]
[370417304,1752010251958,-960.83,0.00024657,2]
[370417305,1752010251967,-460.0,0.00024657,2]
[370417306,1752010251976,-753.45,0.00024657,2]
[370417307,1752010251985,-1968.84,0.00024657,2]
[370417308,1752010251994,-151.0,0.00024657,7]
[370417309,1752010252003,-460.0,0.00024657,2]
[370417310,1752010252012,-850.56,0.00024657,2]
[370417311,1752010252021,-460.0,0.00024657,2]
[370417312,1752010252030,-3310.94,0.00024657,2]
[370417313,1752010252039,-762.25,0.00024657,2]
[370417314,1752010252049,-9408.69,0.00024657,2]
[370417315,1752010252061,-542.94404629,0.00024657,2]
[370417316,1752010252070,-579.5,0.00024657,2]
[370417317,1752010252079,-210.42967381,0.00024657,2]
[370417318,1752010252088,-1323.5,0.00024657,2]
[370417319,1752010252097,-966.69,0.00024657,2]
[370417320,1752010252107,-3857.51,0.00024657,2]
[370417321,1752010252116,-913.6,0.00024657,2]
[370417322,1752010252125,-460.0,0.00024657,2]
[370417323,1752010252134,-460.0,0.00024657,2]
[370417324,1752010252144,-749.61,0.00024657,2]
[370417325,1752010252153,-666.19,0.00024657,2]
[370417326,1752010252162,-460.0,0.00024657,2]
[370417327,1752010252171,-539.1,0.00024657,2]
[370417328,1752010252181,-544.35998344,0.00024657,2]
[370417329,1752010252190,-2705.41,0.00024657,2]
[370417330,1752010252199,-460.0,0.00024657,2]
[370417331,1752010252210,-966.64,0.00024657,2]
[370417332,1752010252219,-460.0,0.00024657,2]
[370417333,1752010252228,-460.0,0.00024657,2]
[370417334,1752010252238,-1973.1,0.00024657,2]
[370417335,1752010252247,-460.0,0.00024657,2]
[370417336,1752010252256,-2059.27,0.00024657,2]
[370417337,1752010252265,-460.0,0.00024657,2]
[370417338,1752010252275,-9800.0,0.00024657,2]
[370417339,1752010252284,-460.0,0.00024657,2]
[370417340,1752010252293,-586.9,0.00024657,2]
[370417341,1752010252303,-7409.3,0.00024657,2]
[370417342,1752010252312,-1258.59,0.00024657,2]
[370417343,1752010252322,-2503.24,0.00024657,2]
[370417344,1752010252331,-460.0,0.00024657,2]
[370417345,1752010252341,-2611.73,0.00024657,2]
[370417346,1752010252350,-460.0,0.00024657,2]
[370417347,1752010252359,-460.0,0.00024657,2]
[370417348,1752010252367,-1666.86,0.00024657,2]
[370417349,1752010252376,-7129.76,0.00024657,2]
[370417350,1752010252385,-460.0,0.00024657,2]
[370417351,1752010252394,-2918.61,0.00024657,2]
[370417352,1752010252404,-150.0,0.00024657,2]
[370417353,1752010252413,-460.0,0.00024657,2]
[370417354,1752010252423,-460.0,0.00024657,2]
[370417355,1752010252432,-151.0,0.00024657,7]
[370417356,1752010252441,-150.0,0.00024657,2]
[370417357,1752010252450,-3055.97,0.00024657,2]
[370417358,1752010252461,-2781.69,0.00024657,2]
[370417359,1752010252470,-10144.68,0.00024657,2]
[370417360,1752010252479,-150.0,0.00024657,2]
[370417361,1752010252488,-460.0,0.00024657,2]
[370417362,1752010252497,-460.0,0.00024657,2]
[370417363,1752010252507,-22341.62,0.00024657,2]
[370417364,1752010252516,-484.12,0.00024657,2]
[370417365,1752010252525,-460.0,0.00024657,2]
[370417366,1752010252535,-460.0,0.00024657,2]
[370417367,1752010252544,-585.42394855,0.00024657,2]
[370417368,1752010252553,-460.0,0.00024657,2]
[370417369,1752010252563,-580.49,0.00024657,2]
[370417370,1752010252572,-1867.83,0.00024657,2]
[370417371,1752010252582,-1972.55,0.00024657,2]
[370417372,1752010252591,-482.16663916,0.00024657,2]
[370417373,1752010252600,-151.0,0.00024657,7]
[370417374,1752010252610,-460.0,0.00024657,2]
[370417375,1752010252620,-460.0,0.00024657,2]
[370417376,1752010252629,-796.51,0.00024657,2]
[370417377,1752010252638,-613.11,0.00024657,2]
[370417378,1752010252648,-151.0,0.00024657,7]
[370417379,1752010252661,-460.0,0.00024657,2]
[370417380,1752010252671,-151.0,0.00024657,7]
[370417381,1752010252680,-235.23028524,0.00024657,2]
[370417382,1752010252690,-2362.47,0.00024657,2]